[Event "45th FIDE Olympiad 2024"]
[Site "Budapest"]
[Date "2024.09.19"]
[Round "8.73"]
[White "Tin, Jingyao"]
[Black "Theodorou, Nikolas"]
[Result "1/2-1/2"]
[ECO "C01"]
[WhiteElo "2580"]
[BlackElo "2619"]
[Annotator "TA"]
[PlyCount "121"]
[EventDate "2024.09.05"]
[EventType "team-tourn"]
[EventCountry "HUN"]
[SourceTitle "playchess.com"]
[Source "ChessBase"]
[SourceQuality "1"]
[WhiteTeam "Singapore"]
[BlackTeam "Greece"]
[WhiteTeamCountry "SIN"]
[BlackTeamCountry "GRE"]
[TimeControl "40/5400+30:1800+30"]

{[%evp 9,121,20,33,14,33,15,33,25,22,22,21,0,0,20,10,5,21,0,29,0,15,37,36,-5,0,-27,-29,-15,-19,-21,-10,-12,-17,-34,-45,-38,-43,-42,-44,-39,-38,-36,-39,-33,-28,-106,-105,-122,-125,-130,-128,-115,-75,-137,-121,-114,-108,-179,-174,-197,-197,-179,-115,-166,-124,-120,-115,-166,-179,-110,-114,-114,-91,-116,-142,-352,-245,-625,-361,-589,-404,-492,-437,-499,-500,-385,0,0,0,0,0,0,0,0,0,0,0,0,0,0,0,0,0,0,0,0,0,0,0,0,0,0,0,0]} 1. d4 e6 2. c4 b6 3. e4 Bb4+ 4. Bd2 Bxd2+ 5. Qxd2 d5 6. Bd3 Nc6 7. Nf3 dxe4 8. Bxe4 {White is slightly better.} Bb7 9. Nc3 Nf6 10. Bc2 O-O 11. O-O-O Nb4 12. Bb1 c5 13. dxc5 Qc7 {Wards off Ne5} 14. Qd6 Qxc5 15. Qxc5 bxc5 16. Rd6 Rfd8 17. Rhd1 Rxd6 18. Rxd6 Bxf3 19. gxf3 Kf8 20. a3 Ke7 21. Nb5 {[#]} Rb8 $1 {[%cal Ob8b5]} 22. axb4 {[#]} Rxb5 $15 {[%mdl 4096] Endgame. KRB-KRN} 23. Ra6 Rxb4 24. Rxa7+ Nd7 25. Bd3 {[%cal Of3f4]} g5 26. Kc2 $1 f5 27. b3 (27. Kc3 $1 $11 {remains equal.}) 27... h5 $17 28. Kc3 Rb8 29. Bc2 Kd6 30. Bd1 Nf6 31. Rf7 (31. Bc2 $142) 31... Ke5 32. Rc7 g4 33. Rf7 (33. Rxc5+ $17 Kf4 34. Bc2 gxf3 35. Rb5) 33... Rd8 $19 34. Kc2 {[%cal Of3f4]} Rd4 35. Rc7 gxf3 36. Bxf3 (36. Rxc5+ $2 {too greedy.} Kf4 37. Rc7 Ne4 $19) 36... Rf4 $1 ({Don't play} 36... Kf4 $6 37. Bb7 $11) 37. Bb7 Rxf2+ 38. Kc3 Ne4+ $1 ({Much less strong is} 38... Rxh2 39. Rxc5+ Kf4 40. b4 $15) 39. Bxe4 Kxe4 40. Rxc5 Rxh2 {KR-KR} 41. Rc6 e5 42. Rf6 $2 (42. c5 $17) 42... Rh3+ 43. Kb2 $2 (43. Kc2 Rh2+ 44. Kc3) 43... f4 44. c5 $2 (44. b4 Rg3 45. c5) 44... Kd5 45. c6 {[%cal Bc5c6,Bc6c7][%mdl 32]} Rg3 46. b4 {[#] b5 would now be deadly.} Rg8 $1 47. Kb3 {[#]} h4 $2 (47... Rb8 $1 $19 {Strongly threatening ...h4.} 48. Ka4 Rc8) 48. b5 $11 {The position is equal.} Kc5 (48... h3 $5 49. c7 $8 h2 $11) 49. c7 {White wants to mate with b6.} Kxb5 50. Re6 h3 51. Rxe5+ Kc6 52. Rh5 Kxc7 {aiming for ...Rg2.} 53. Kc4 Rg3 54. Kd4 Re3 55. Rh4 Ra3 56. Ke4 Kd6 57. Rh6+ Ke7 58. Kxf4 Kf7 59. Kg4 Kg7 60. Rxh3 Rxh3 61. Kxh3 {White happily takes the draw.   Weighted Error Value: White=0.23 (precise) /Black=0.18 (very precise) .  Loses game:     	White=1     	---        Missed win:     	---       	Black=1      Mistake:       	White=5     	---        Inaccurate:     	White=3     	Black=3      OK:         	White=21    	Black=18     Best:        	White=11    	Black=6      Strong:       	White=1     	Black=3      Brilliant:      	---       	Black=1} 1/2-1/2

[Event "45th FIDE Olympiad 2024"]
[Site "Budapest"]
[Date "2024.09.19"]
[Round "8.73"]
[White "Murphy, Jones"]
[Black "Righi, Ezio"]
[Result "0-1"]
[WhiteElo "2021"]
[BlackElo "1909"]
[PlyCount "78"]
[EventDate "2024.09.05"]
[EventType "team-tourn"]
[EventCountry "HUN"]
[WhiteTeam "Dominica"]
[BlackTeam "San Marino"]
[BlackTeamCountry "SMR"]
[TimeControl "40/5400+30:1800+30"]

1. e4 c5 2. c4 Nc6 3. Ne2 e5 4. Nbc3 d6 5. d3 Be7 6. g3 f5 7. Bg2 Nf6 8. f4 O-O 9. O-O fxe4 10. dxe4 Kh8 11. h3 Be6 12. Nd5 Nd4 13. f5 Bxd5 14. cxd5 b5 15. Be3 a5 16. Qd2 a4 17. g4 Qa5 18. Qd1 Rac8 19. g5 Nd7 20. Ng3 b4 21. Rf2 Qb5 22. Bf1 Qb7 23. Qxa4 Nb6 24. Qd1 Ra8 25. Qh5 Bd8 26. Qd1 Ra5 27. a4 bxa3 28. bxa3 Qa7 29. Qh5 Nd7 30. Bxd4 cxd4 31. Rfa2 d3+ 32. Kg2 Qe3 33. h4 Bb6 34. Qf3 d2 35. Be2 Rfa8 36. Qxe3 Bxe3 37. Nf1 Bd4 38. Rb1 Kg8 39. Rxd2 Rxa3 {0-} 0-1

[Event "45th FIDE Olympiad 2024"]
[Site "Budapest"]
[Date "2024.09.19"]
[Round "8.74"]
[White "Kourkoulos-Arditis, Stamatis"]
[Black "Siddharth, Jagadeesh"]
[Result "1/2-1/2"]
[ECO "B92"]
[WhiteElo "2570"]
[BlackElo "2514"]
[Annotator "TA"]
[PlyCount "60"]
[EventDate "2024.09.05"]
[EventType "team-tourn"]
[EventCountry "HUN"]
[SourceTitle "playchess.com"]
[Source "ChessBase"]
[SourceQuality "1"]
[WhiteTeam "Greece"]
[BlackTeam "Singapore"]
[WhiteTeamCountry "GRE"]
[BlackTeamCountry "SIN"]
[TimeControl "40/5400+30:1800+30"]

{[%evp 24,60,14,0,11,5,31,0,0,0,0,-1,0,0,-7,0,0,0,0,-5,0,0,0,-23,0,-29,0,0,0,-20,-30,-89,-89,-98,-56,-146,-60,-66,-59]} 1. e4 c5 2. Nf3 d6 3. d4 cxd4 4. Nxd4 Nf6 5. Nc3 a6 6. Be2 e5 7. Nb3 Be7 8. Be3 Be6 9. Nd5 Nbd7 10. Qd3 Bxd5 11. exd5 Rc8 12. c4 O-O 13. O-O a5 14. Rac1 b6 15. Nd2 g6 {The position is equal.} 16. f4 exf4 17. Bxf4 Ne5 18. Qg3 Nfd7 19. Nb3 Bh4 20. Qe3 Re8 {[%cal Oe5c4]} 21. Qd2 Nc5 22. Nxc5 bxc5 23. Rc3 Rb8 24. Bd1 Qd7 25. Rh3 {[#] Bxe5 is the strong threat.} Bd8 $1 (25... Nxc4 $2 26. Qc3 $18) 26. Bxe5 (26. Ba4 $5 Qxa4 27. Bxe5 Rxe5 28. Qh6 $11) 26... Rxe5 27. Qh6 (27. b3 $1 $11) 27... f5 $17 (27... Rxb2 28. Qxh7+ Kf8 29. Qh8+ (29. Qxg6 Rf2 $18) 29... Ke7 30. Qf6+ Kf8 31. Rh8#) 28. g4 Qg7 {[#] Threatens to win with ...Qxh6.} (28... fxg4 29. Qf8#) 29. Qxg7+ ({But not} 29. gxf5 $2 Qxh6 (29... Rxb2 30. Qc1 $17) (29... Rxf5 $2 {too greedy.} 30. Rxf5 Qxh6 31. Rxh6 $18) 30. Rxh6 Rxb2 $19 (30... Rxf5 $2 31. Rxf5 Kg7 32. Rfh5 $16)) 29... Kxg7 30. b3 fxg4 {Weighted Error Value: White=0.17 (very precise) /Black=0.10 (very precise) .  Mistake:       	White=1     	---        Inaccurate:     	White=2     	Black=4      OK:         	White=4     	Black=5      Best:        	White=1     	Black=2      Strong:       	---       	Black=1} 1/2-1/2

[Event "45th FIDE Olympiad 2024"]
[Site "Budapest"]
[Date "2024.09.19"]
[Round "8.74"]
[White "Volpinari, Danilo"]
[Black "Bridet, Robert"]
[Result "1-0"]
[WhiteElo "1939"]
[BlackElo "1697"]
[PlyCount "67"]
[EventDate "2024.09.05"]
[EventType "team-tourn"]
[EventCountry "HUN"]
[WhiteTeam "San Marino"]
[BlackTeam "Dominica"]
[WhiteTeamCountry "SMR"]
[TimeControl "40/5400+30:1800+30"]

1. e4 e5 2. Nf3 Nc6 3. Bc4 Bc5 4. c3 Nf6 5. d3 h6 6. b4 Bd6 7. Nbd2 O-O 8. Nf1 b6 9. Ng3 Ne7 10. Nh4 a5 11. b5 Bc5 12. Nh5 Nxh5 13. Qxh5 Kh7 14. O-O d5 15. exd5 Nxd5 16. d4 Nf6 17. Qxe5 Bd6 18. Qe2 Bxh2+ 19. Kxh2 Ng4+ 20. Kg3 g5 21. Bd3+ f5 22. Nxf5 Bxf5 23. Bxf5+ Rxf5 24. Qxg4 Qd6+ 25. Kh3 Kg6 26. Qe4 h5 27. f3 Rh8 28. Qc6 g4+ 29. Kh4 Rxb5 30. Qxd6+ cxd6 31. Ba3 Rd5 32. Rae1 Rf8 33. fxg4 hxg4 34. Rxf8 1-0

[Event "45th FIDE Olympiad 2024"]
[Site "Budapest"]
[Date "2024.09.19"]
[Round "8.75"]
[White "Wong, Zhenyong Jayden"]
[Black "Papaioannou, Ioannis"]
[Result "0-1"]
[ECO "E11"]
[WhiteElo "2397"]
[BlackElo "2615"]
[Annotator "TA"]
[PlyCount "144"]
[EventDate "2024.09.05"]
[EventType "team-tourn"]
[EventCountry "HUN"]
[SourceTitle "playchess.com"]
[Source "ChessBase"]
[SourceQuality "1"]
[WhiteTeam "Singapore"]
[BlackTeam "Greece"]
[WhiteTeamCountry "SIN"]
[BlackTeamCountry "GRE"]
[TimeControl "40/5400+30:1800+30"]

{[%evp 12,144,38,46,52,26,35,39,34,26,49,-125,-121,-142,-142,-150,-154,-139,-149,-176,-182,-189,-51,-62,-19,-20,-27,-35,0,0,0,0,0,0,0,0,0,0,0,0,0,0,0,0,0,0,0,-70,-72,-52,-54,-93,-87,-87,-75,-99,-97,-92,-49,-36,-8,-8,-11,-103,-98,-142,-131,-129,-128,-138,-120,-135,-143,-138,-135,-161,-156,-159,-142,-152,-150,-159,-159,-159,-159,-174,-159,-192,-166,-166,-159,-152,-147,-168,-170,-171,-170,-161,-148,-174,-180,-189,-163,-177,-173,-181,-188,-202,-202,-195,-195,-210,-221,-203,-188,-188,-188,-184,-181,-181,-163,-248,-239,-29956,-29961,-29962,-29964,-29957,-29956,-29971,-29972,-29973,-29973,-29973,-29973]} 1. d4 Nf6 2. c4 e6 3. Nf3 Bb4+ 4. Nbd2 d5 5. Qa4+ Nc6 6. a3 Be7 7. e3 a5 8. Ne5 (8. b4 $5) 8... Bd7 9. Nxd7 Qxd7 {[#] White is slightly better.} 10. b4 $1 dxc4 (10... O-O 11. b5) 11. Nxc4 $2 {[#]} (11. Bxc4 $14 {stays ahead.} Ne5 12. Bb5) 11... b5 $1 $17 {[%mdl 512]} 12. Qxb5 (12. Nd6+ Qxd6) 12... axb4 13. Ne5 Nxe5 14. dxe5 Nd5 15. a4 c6 16. Qd3 {[#]} b3 17. Bd2 $15 b2 18. Rb1 Rxa4 19. Qc2 Ra3 (19... c5 {keeps more tension.} 20. Bc4 O-O 21. O-O Rb8) 20. Qxb2 O-O 21. Bc4 Ra4 22. Qc2 Rfa8 23. O-O Nb4 24. Qd1 c5 25. Qe2 Qc7 26. f4 Rd8 27. Rfc1 {And now Bb3 would win.} Qb7 28. Be1 Ra3 29. Rd1 ({Better is} 29. e4 $11) 29... Rxd1 30. Rxd1 {[%cal Of4f5]} Qe4 31. Bf2 Rc3 {Black is much more active.} 32. Bb5 c4 33. Qf3 Qxf3 34. gxf3 Nd5 {[%cal Og7g6]} 35. f5 $1 Nxe3 36. Bxe3 Rxe3 37. fxe6 {[%mdl 4096] Endgame. KRB-KRB} (37. Rd7 $1 $11 Bc5 (37... Rxe5 38. Rxe7 g6 39. f6 $16) 38. Rd8+ Bf8 39. f4) 37... c3 $17 {Black continues to play with concentration.} (37... fxe6 38. Bxc4 Rxe5 39. Kf1 $11) (37... Rxe5 $6 38. exf7+ Kxf7 39. Bxc4+ Kf8 40. Bd5 $11) 38. Kf2 Rxe5 39. exf7+ Kxf7 40. Bd3 Rh5 41. Rc1 Bf6 (41... Rxh2+ 42. Kg1 Bd6 43. Rxc3 $11) 42. Kg3 Rg5+ 43. Kf4 {[%cal Oc1c3]} h6 44. Rc2 Ke7 45. Ke3 Kd6 46. f4 Rh5 47. Ke4 Kc5 48. Rg2 Kb4 49. Rf2 Ra5 50. Bc2 Ra2 51. Kd3 Ra7 52. Ke4 Re7+ 53. Kd3 Rd7+ 54. Ke4 Kc4 55. Rg2 Re7+ 56. Kf3 Re1 57. Re2 Rf1+ 58. Rf2 Rc1 59. Ke4 h5 ({But not} 59... Re1+ 60. Kf5) 60. Re2 h4 61. Rf2 Re1+ 62. Kf3 Kd4 63. Re2 Rf1+ 64. Rf2 Rc1 {[%cal Oc1c2] Hoping for ...Rxc2!} 65. Bf5 Bd8 66. Rg2 (66. Bh7 {is a better defense.}) 66... Rf1+ $19 67. Rf2 $2 {[#]} (67. Ke2 $19 Rxf4 68. Bc2) 67... Rxf2+ $1 {Black mates.} 68. Kxf2 {[#]} h3 $1 {[%mdl 512]} 69. Ke2 (69. Ke1 Bc7) 69... Bc7 70. Kf3 Kc4 71. Kg4 Kb3 72. Kxh3 Bxf4 {Weighted Error Value: White=0.16 (very precise) /Black=0.10 (very precise) .  Mistake:       	White=5     	Black=1      Inaccurate:     	White=3     	Black=4      OK:         	White=21    	Black=28     Best:        	White=5     	Black=5      Strong:       	White=1     	Black=1      Brilliant:      	---       	Black=1} 0-1

[Event "45th FIDE Olympiad 2024"]
[Site "Budapest"]
[Date "2024.09.19"]
[Round "8.75"]
[White "Thomas, Larry"]
[Black "Grassi, Enrico"]
[Result "1/2-1/2"]
[WhiteElo "1686"]
[BlackElo "1965"]
[PlyCount "54"]
[EventDate "2024.09.05"]
[EventType "team-tourn"]
[EventCountry "HUN"]
[WhiteTeam "Dominica"]
[BlackTeam "San Marino"]
[BlackTeamCountry "SMR"]
[TimeControl "40/5400+30:1800+30"]

1. d4 c5 2. d5 g6 3. e4 d6 4. Nf3 Bg7 5. c3 Nf6 6. Qc2 O-O 7. Be2 Bd7 8. O-O b5 9. Bf4 a5 10. a3 Na6 11. c4 Rb8 12. cxb5 Bxb5 13. Bxb5 Rxb5 14. Nc3 Rb7 15. Nd2 Qb6 16. Rab1 Rfb8 17. h3 Nd7 18. Be3 Qd8 19. Nc4 Ne5 20. Nxe5 Bxe5 21. Rfc1 Rb3 22. Bd2 Qb6 23. Na4 Qb5 24. Nc3 Qb7 25. Na4 Qb5 26. Nc3 Qb7 27. Na4 Qb5 1/2-1/2

[Event "45th FIDE Olympiad 2024"]
[Site "Budapest"]
[Date "2024.09.19"]
[Round "8.76"]
[White "Kelires, Andreas"]
[Black "Goh, Wei Ming Kevin"]
[Result "1-0"]
[ECO "B72"]
[WhiteElo "2536"]
[BlackElo "2449"]
[Annotator "TA"]
[PlyCount "105"]
[EventDate "2024.09.05"]
[EventType "team-tourn"]
[EventCountry "HUN"]
[SourceTitle "playchess.com"]
[Source "ChessBase"]
[SourceQuality "1"]
[WhiteTeam "Greece"]
[BlackTeam "Singapore"]
[WhiteTeamCountry "GRE"]
[BlackTeamCountry "SIN"]
[TimeControl "40/5400+30:1800+30"]

{[%evp 21,105,23,33,32,38,39,44,29,61,70,26,27,30,22,47,52,52,50,60,60,64,70,62,56,54,65,69,48,97,69,66,59,65,47,26,21,26,17,99,92,238,262,284,279,312,241,252,223,331,203,326,349,380,352,382,357,419,390,481,470,507,489,641,641,814,784,754,790,886,843,839,789,1275,1254,1604,1454,1985,1482,1919,2016,1628,1731,2068,1931,1702,1518]} 1. e4 c5 2. Nf3 d6 3. d4 cxd4 4. Nxd4 Nf6 5. Nc3 g6 6. Be3 Nc6 {B72: Sicilian Dragon: 6 Be3, lines with h3+Bc4 and sidelines.} 7. f3 h5 8. Bc4 Bd7 9. h3 a6 $146 ({Predecessor:} 9... h4 10. Qd2 Bg7 11. O-O-O Nxd4 12. Bxd4 Bh6 13. Be3 Bxe3 14. Qxe3 Qa5 15. Nd5 Nxd5 16. exd5 {0-1 Barcelo Sola,D (1980)-Pham Guerrero,S (2066) La Pobla de Lillet op 33rd 2024 (5)}) 10. Nxc6 Bxc6 11. Qd2 Bg7 12. O-O-O b5 13. Bd5 Qc7 14. Kb1 Rc8 15. Bxc6+ Qxc6 16. Nd5 Nxd5 17. exd5 Qc4 18. Rhe1 Bf6 19. Bb6 Qh4 20. Re4 Qg5 $1 21. Be3 Qf5 22. Rf4 Qd7 23. Bd4 Bxd4 24. Rxd4 h4 (24... Rc5 $14 {feels stronger.}) 25. Qe1 Qf5 26. Re4 (26. Rxh4 $2 {loses.} Qxc2+ 27. Ka1 Rxh4 $19) 26... Kf8 27. Rd3 (27. Rxe7 Qxc2+ 28. Ka1 Rh5 $17 (28... Qxg2 29. Rxf7+ Kxf7 30. Qe6+ Kg7 31. Qe7+ Kg8 32. Qe6+ Kg7 33. Qe7+ Kh6 34. Qxh4+ Kg7 35. Qe7+ Kg8 36. Qe6+ Kh7 37. Qe7+ Kh6 38. Qh4+ Kg7 39. Qe7+ Kg8 40. Qe6+ Kh7 41. Qe7+ Kg8 $11)) 27... Qg5 28. Rg4 Qf6 29. Rdd4 Rc5 (29... Rh5 $1 $11) 30. b4 $16 (30. Rxh4 Rxh4 31. Rxh4 Rxd5 $15) 30... Rc4 (30... Rc7 $16 {was worth a try.}) 31. Rxc4 $18 bxc4 32. Rxc4 Rh5 33. Qc3 Qxc3 34. Rxc3 Rxd5 (34... Ke8 $142 35. Ra3 Rxd5) 35. Rc8+ $18 Kg7 36. Rc6 Rb5 {[#]} 37. c3 $1 a5 (37... Rg5 38. Rxa6 Rh5 39. a4 $18) 38. a4 Rb7 ({Much weaker is} 38... Rg5 39. b5 Rxg2 40. Ra6 (40. b6 Rg1+ 41. Ka2 Rg2+ 42. Ka3 Rg1 $18) 40... Rg1+ 41. Ka2 Rg2+ 42. Ka3 $18) 39. b5 Kf6 40. Ra6 Ke5 41. Rxa5 Kf4 42. c4 Kg3 43. Kc2 Kxg2 44. Ra8 Kxh3 45. a5 Rc7 46. Kb3 Kg2 47. Rh8 h3 48. b6 Rb7 49. Kb4 h2 50. Kb5 Rb8 51. Rxh2+ Kxh2 52. a6 e5 53. a7 1-0

[Event "45th FIDE Olympiad 2024"]
[Site "Budapest"]
[Date "2024.09.19"]
[Round "8.76"]
[White "Piva, Michele"]
[Black "Francis, Nigel"]
[Result "1/2-1/2"]
[WhiteElo "1721"]
[BlackElo "1775"]
[PlyCount "136"]
[EventDate "2024.09.05"]
[EventType "team-tourn"]
[EventCountry "HUN"]
[WhiteTeam "San Marino"]
[BlackTeam "Dominica"]
[WhiteTeamCountry "SMR"]
[TimeControl "40/5400+30:1800+30"]

1. d4 Nf6 2. c4 g6 3. Nf3 Bg7 4. Nc3 d5 5. Bf4 a6 6. e3 O-O 7. h3 dxc4 8. Bxc4 b6 9. O-O Bb7 10. Rc1 e6 11. a3 Nc6 12. b4 Ne7 13. Bh2 Rc8 14. Be2 c5 15. bxc5 bxc5 16. Qb3 Bxf3 17. Bxf3 cxd4 18. Rfd1 Qa5 19. exd4 Ned5 20. Nxd5 Nxd5 21. Bd6 Rxc1 22. Rxc1 Rd8 23. Bc5 Qd2 24. Rd1 Qg5 25. Qb7 a5 26. Qa7 a4 27. Qa5 Bf6 28. Bxd5 Qxd5 29. Qxa4 Kg7 30. Qb4 e5 31. Rd3 exd4 32. a4 Qe4 33. Qd2 Rd5 34. Bb6 Be5 35. f3 Qh4 36. Qf2 Qf6 37. a5 Qd6 38. Kf1 Qb4 39. Qa2 Rb5 40. Ke2 Qb2+ 41. Qxb2 Rxb2+ 42. Rd2 Rb3 43. Bxd4 Bxd4 44. Rxd4 Ra3 45. Rd5 Kf6 46. Rb5 Ke7 47. g4 Kd6 48. Rb7 Ke6 49. Rb6+ Ke5 50. a6 f5 51. Rb7 Rxa6 52. Rxh7 fxg4 53. hxg4 Ra2+ 54. Ke3 Ra3+ 55. Kf2 Kf4 56. Rf7+ Kg5 57. Kg3 Rb3 58. Rc7 Ra3 59. Rc5+ Kf6 60. g5+ Ke6 61. Kg4 Ra4+ 62. f4 Kf7 63. Rd5 Rb4 64. Kf3 Ke6 65. Re5+ Kf7 66. Re4 Rb3+ 67. Kg4 Rb5 68. Kf3 Rb3+ 1/2-1/2

[Event "45th FIDE Olympiad 2024"]
[Site "Budapest"]
[Date "2024.09.19"]
[Round "8.77"]
[White "Kozak, Adam"]
[Black "Dardha, Daniel"]
[Result "1/2-1/2"]
[ECO "E36"]
[WhiteElo "2609"]
[BlackElo "2603"]
[Annotator "TA"]
[PlyCount "42"]
[EventDate "2024.09.05"]
[EventType "team-tourn"]
[EventCountry "HUN"]
[SourceTitle "playchess.com"]
[Source "ChessBase"]
[SourceQuality "1"]
[WhiteTeam "Hungary B"]
[BlackTeam "Belgium"]
[BlackTeamCountry "BEL"]
[TimeControl "40/5400+30:1800+30"]

{[%evp 15,42,27,10,0,5,-1,0,-9,-2,-4,-14,-12,-18,-20,-29,-25,0,0,0,0,0,0,0,0,0,0,0,0,0]} 1. d4 Nf6 2. c4 e6 3. Nc3 Bb4 4. Qc2 d5 5. a3 Bxc3+ 6. Qxc3 O-O 7. Nf3 dxc4 8. Qxc4 b6 {Black is weak on the dark squares} 9. Bg5 Ba6 10. Qc1 Nbd7 11. e4 Qc8 12. Bxa6 Qxa6 13. Qc6 {[%cal Oe1c1]} h6 14. Bxf6 Nxf6 15. O-O-O {[%cal Oc1b1]} Rfd8 16. Kb1 {The position is equal.} Rac8 17. Rhe1 Rd6 18. Qc2 {[#] Hoping for e5.} Rdd8 (18... c5 $2 19. e5 Rxd4 (19... cxd4 $2 20. Qd3 $18) 20. exf6 (20. Nxd4 cxd4 21. Qe2 Qxe2 $18) 20... Rxd1+ 21. Qxd1 $18 (21. Rxd1 gxf6 22. Rd3 c4 $18)) 19. Qc6 Rd6 20. Qc2 {And now e5 would win.} Rdd8 ({Don't go for} 20... c5 $2 21. e5 Rxd4 (21... cxd4 $2 22. Qd3 $18) 22. exf6 (22. Nxd4 cxd4 23. Qe2 d3 $18) 22... Rxd1+ 23. Qxd1 $18 (23. Rxd1 gxf6 24. Rd3 c4 $18)) 21. Qc6 Rd6 {An uneventful encounter.   Weighted Error Value: White=0.01 (flawless) /Black=0.02 (flawless) .  OK:         	White=9     	Black=10} 1/2-1/2

[Event "45th FIDE Olympiad 2024"]
[Site "Budapest"]
[Date "2024.09.19"]
[Round "8.77"]
[White "Moncur, Cecil"]
[Black "Mahamat, Hachim Bachar"]
[Result "0-1"]
[WhiteElo "1839"]
[BlackElo "1872"]
[PlyCount "80"]
[EventDate "2024.09.05"]
[EventType "team-tourn"]
[EventCountry "HUN"]
[WhiteTeam "Bahamas"]
[BlackTeam "Chad"]
[WhiteTeamCountry "BAH"]
[BlackTeamCountry "CHD"]
[TimeControl "40/5400+30:1800+30"]

1. d4 e6 2. e4 d5 3. e5 c5 4. c3 Nc6 5. Nf3 Nge7 6. Bd3 Ng6 7. h4 h5 8. Bxg6 fxg6 9. Qd3 Ne7 10. dxc5 Nf5 11. Bg5 Qc7 12. b4 a5 13. Nbd2 axb4 14. cxb4 b6 15. Nb3 bxc5 16. bxc5 Ba6 17. Qc2 Bc4 18. Be3 Ra3 19. Rb1 Be7 20. Bg5 O-O 21. Bxe7 Nxe7 22. Qb2 Rfa8 23. Nfd2 Bd3 24. Ra1 Nc6 25. f4 R8a4 26. Rh3 Bf5 27. Rc3 d4 28. Rc4 Qd8 29. g3 Qd5 30. Rxa4 Rxa4 31. a3 Qg2 32. Nc1 Qxg3+ 33. Kd1 Qg1+ 34. Ke2 Qg2+ 35. Kd1 d3 36. Nc4 Bg4+ 37. Ke1 Qg1+ 38. Kd2 Rxc4 39. Nxd3 Qg2+ 40. Ke1 Re4+ {0-} 0-1

[Event "45th FIDE Olympiad 2024"]
[Site "Budapest"]
[Date "2024.09.19"]
[Round "8.78"]
[White "Vandenbussche, Thibaut"]
[Black "Banusz, Tamas"]
[Result "1-0"]
[ECO "B30"]
[WhiteElo "2461"]
[BlackElo "2605"]
[Annotator "TA"]
[PlyCount "161"]
[EventDate "2024.09.05"]
[EventType "team-tourn"]
[EventCountry "HUN"]
[SourceTitle "playchess.com"]
[Source "ChessBase"]
[SourceQuality "1"]
[WhiteTeam "Belgium"]
[BlackTeam "Hungary B"]
[WhiteTeamCountry "BEL"]
[TimeControl "40/5400+30:1800+30"]

{[%evp 9,161,20,30,42,34,21,23,17,22,19,25,32,18,9,26,26,22,24,40,26,36,10,87,87,127,130,218,219,208,199,208,133,131,124,229,131,118,126,156,79,66,66,137,128,168,160,622,198,192,189,222,214,250,243,252,240,246,248,245,144,161,154,161,157,127,117,154,0,154,0,154,115,154,135,154,154,154,154,154,114,194,133,139,137,194,187,187,0,145,140,148,146,118,141,155,149,33,26,33,22,22,22,22,84,109,22,29,29,86,37,19,19,19,19,22,22,22,22,22,23,1472,202,202,117,117,117,10707,10372,10683,7873,7790,7146,7391,6516,5791,5607,5589,5468,5443,5307,5716,5587,11770,11770,29958,29960,29958,29959,29956,29941,6637,4652,4627,4627]} 1. e4 c5 2. Nf3 Nc6 3. Bb5 Nf6 4. Nc3 Qc7 5. O-O Nd4 6. Re1 e5 7. Nxd4 cxd4 8. Nd5 {White has an edge.} Nxd5 9. exd5 {Threatens to win with Qh5.} Bd6 10. c3 O-O 11. cxd4 a6 12. Bd3 e4 13. Bxe4 $40 {[%mdl 128] White has some attack.} Bxh2+ 14. Kh1 f5 15. Bf3 Bf4 (15... Bd6 $11) 16. d3 $16 Qd6 17. Kg1 a5 (17... Bh2+ $16 18. Kh1 Bf4) 18. Qe2 $1 $18 Ra6 19. Bxf4 Qxf4 20. Rac1 {Hoping for Qe5.} Rh6 21. g3 $1 Qg5 (21... Qd6 $16 {was worth a try.} 22. Qe5 b6) 22. Qe7 (22. d6 $1 $18 {Bd5+ would now be deadly.} Rxd6 23. Rc5) 22... Qxe7 $16 23. Rxe7 f4 24. Rc7 (24. gxf4 $142 $1 Rg6+ 25. Kf1) 24... fxg3 25. fxg3 Rg6 ({Better is} 25... Rhf6 $14 26. Be4 a4) 26. Kg2 $1 {White has more active pieces.} Rgf6 27. Bg4 Rg6 (27... Rf2+ $16 28. Kh3 Rd8) 28. Bxd7 $2 (28. Bh5) 28... Bxd7 $18 29. Rcxd7 {[%mdl 4096] Endgame. KRR-KRR} h5 30. Re6 Rg5 31. Re5 $1 (31. Rxb7 h4 $14) 31... Rg4 32. Rxh5 (32. Rxb7 h4 $16) 32... Rxd4 33. Rxb7 Rxd3 {[#]} 34. d6 a4 $16 35. Ra5 {Strongly threatening Raa7.} Rff3 36. Rg5 ({And not} 36. Rxa4 Rxg3+ 37. Kf2 Rgf3+ 38. Kg2 Rg3+ 39. Kh2 (39. Kf2 Rgf3+ 40. Kg2 Rg3+ $11) 39... Rh3+ 40. Kg2 Rhg3+ $11) 36... Rf7 37. Rb8+ Rf8 38. Rb7 Rf7 39. Rb8+ Rf8 $1 40. Rb6 Rf6 41. a3 Rd2+ 42. Kh3 Rfxd6 43. Rxd6 Rxd6 {KR-KR} 44. Rb5 Rd2 (44... Kf7 $16) 45. Rb7 (45. Kg4 $18) 45... Kh7 46. Kg4 Rf2 (46... Kh6 $16 {keeps fighting.} 47. Kf5 g6+ 48. Kf4 Rc2) 47. Kg5 $18 Rf3 48. Kg4 Rf2 49. Rb6 g6 50. Kg5 {And now Rb7+ would win.} Rf5+ 51. Kh4 $1 Rh5+ 52. Kg4 Kh6 53. Rb8 {Intending Rh8+ and mate.} Rg5+ 54. Kf3 {next Rh8+ is good for White.} Rf5+ 55. Kg2 Rd5 56. Rb4 Kh5 57. Kf3 ({Much weaker is} 57. Rxa4 $6 Rd2+ 58. Kf1 Rxb2 $11) (57. Kh3 $16 Ra5 58. g4+ Kg5 59. Kg3) 57... Rd3+ 58. Kf2 {aiming for g4+.} g5 (58... Rd2+ $11 59. Ke3 Rc2) 59. Rxa4 (59. g4+ $16 Kh4 60. Ke1 (60. Rxa4 Rd2+ 61. Ke3 Rxb2 $11) 60... Re3+ 61. Kd2) 59... Rd2+ $14 60. Ke3 Rxb2 61. Rb4 Ra2 62. g4+ $1 Kh4 63. a4 Kg3 64. Kd3 Kf3 $2 {[%mdl 8192]} (64... Ra3+ $11 65. Kc2 Kh4) 65. Kc3 $2 (65. Kc4 Re2 66. Kd5) 65... Re2 $18 66. Kb3 (66. Rd4 $1 $18) 66... Re3+ $16 67. Kb2 {White wants to mate with Rb3.} Re2+ $2 {[%mdl 8192] [#]} (67... Re8 $16 68. Rd4 Ra8) 68. Ka3 $1 $18 Re1 {[#]} 69. Rc4 $1 Ke3 70. Kb4 Kd3 71. Kb5 Re8 72. Rc5 Rb8+ 73. Ka5 Kd4 74. Rb5 Rg8 75. Kb4 Ke3 76. Rf5 Re8 77. Rxg5 Kf4 78. Rg6 Rb8+ 79. Kc5 Ra8 80. Kb5 {Black must now prevent a5.} Rb8+ 81. Rb6 {Weighted Error Value: White=0.41/Black=0.27 (precise) .  Loses game:     	---       	Black=3      Mistake:       	White=8     	Black=7      Inaccurate:     	White=2     	Black=4      OK:         	White=21    	Black=21     Best:        	White=2     	Black=10     Strong:       	White=5     	Black=1} 1-0